[Event "83rd ESP-ch Women-ch 2018"]
[Site "Linares"]
[Date "2018.08.26"]
[Round "7"]
[White "Cruz Ramirez, Nauzet"]
[Black "Blazquez Gomez, Juan Carlos"]
[Result "1-0"]
[ECO "A04"]
[WhiteElo "2037"]
[BlackElo "2240"]
[Annotator "NA"]
[PlyCount "87"]
[EventDate "2018.08.09"]
[EventType "tourn"]
[EventCountry "ESP"]
[SourceTitle "playchess.com"]
[Source "ChessBase"]
[SourceQuality "1"]
[TimeControl "40/5400+30:1800+30"]

1. Nf3 {[%emt 0:00:00]} Nc6 {[%emt 0:00:00]} 2. g3 {[%emt 0:02:14]} e5 {[%emt 0:00:46]} 3. d3 {[%emt 0:00:04]} d5 {[%emt 0:00:32]} 4. Bg2 {[%emt 0:00:10]} f6 {[%emt 0:00:33]} 5. O-O {[%emt 0:02:46]} Be6 {[%emt 0:00:20] A07: Réti Opening: New York and Capablanca Systems} 6. c3 {[%emt 0:00:52]} (6. Nc3 Qd7 7. e4 d4 8. Ne2 O-O-O 9. Ne1 g5 10. f4 h6 11. a3 Bd6 12. b4 Nge7 {0-1 (32) Nalbandian,T (2455)-Hovhannisyan,R (2594) Yerevan 2017}) 6... Qd7 {[%emt 0:00:20]} 7. b4 {[%emt 0:00:23]} a6 {[%emt 0:04:25]} 8. Nbd2 {[%emt 0:04:31]} h5 $146 {[%emt 0:06:18]} ({Predecessor:} 8... Nge7 9. e4 d4 10. cxd4 Nxd4 11. Bb2 Nec6 12. Nxd4 Nxd4 {1-0 (55) Sandkamp,R (2245)-Berov,A (2490) Ruhrgebiet 1997}) 9. h4 {[%emt 0:00:49]} Nh6 {[%emt 0:03:28]} 10. Nb3 {[%emt 0:02:43]} b6 {[%emt 0:01:00]} 11. a4 {[%emt 0:03:30]} Rd8 {[%emt 0:00:39]} 12. Qc2 {[%emt 0:03:32]} Kf7 {[%emt 0:17:34]} 13. Bd2 {[%emt 0:17:12]} Nf5 {[%emt 0:07:11]} 14. Rad1 {[%emt 0:02:42]} Nb8 {[%emt 0:08:15]} 15. a5 {[%emt 0:01:45]} Be7 {[%emt 0:04:13]} 16. Bc1 {[%emt 0:08:52]} Qa4 {[%emt 0:05:02]} 17. axb6 {[%emt 0:06:03]} ({Better is} 17. Bb2 $14) 17... cxb6 {[%emt 0:00:28]} 18. Bd2 {[%emt 0:03:02]} Rc8 {[%emt 0:01:09]} 19. Nbd4 {[%emt 0:01:38]} Qxc2 {[%emt 0:00:38]} 20. Nxc2 {[%emt 0:00:04]} Nd6 {[%emt 0:01:38]} 21. Na3 {[%emt 0:02:34]} Rc7 {[%emt 0:00:08]} 22. Ra1 {[%emt 0:03:26]} Rhc8 {[%emt 0:00:12]} 23. Nb1 {[%emt 0:00:08]} Nb5 {[%emt 0:01:08]} 24. Ne1 Nd6 {[%emt 0:06:57]} 25. Be3 {[%emt 0:03:12]} Rc6 {[%emt 0:03:10]} 26. Bd2 {[%emt 0:00:55]} b5 {[%emt 0:04:14]} 27. Nc2 {[%emt 0:04:25]} Ne8 {[%emt 0:03:24]} (27... Nf5 $11) 28. f4 {[%emt 0:01:51]} Kg8 $1 {[%emt 0:00:47]} 29. Bf3 {[%emt 0:02:21]} g6 {[%emt 0:04:31]} 30. Ne3 {[%emt 0:00:26]} d4 {[%emt 0:00:21]} 31. Bxc6 {[%emt 0:01:57]} dxe3 {[%emt 0:00:13]} 32. Bxe8 {[%emt 0:00:06]} exd2 {[%emt 0:01:00]} 33. Bxg6 {[%emt 0:00:06]} Bg4 {[%emt 0:00:40]} 34. Nxd2 {[%emt 0:00:27]} Rxc3 {[%emt 0:00:12]} 35. fxe5 {[%emt 0:01:33]} fxe5 {[%emt 0:00:09]} 36. Rf7 {[%emt 0:07:08]} Bxb4 {[%emt 0:03:28]} 37. Ne4 {[%emt 0:00:05]} Rc6 {[%emt 0:00:06]} 38. Nf6+ $18 {[%emt 0:04:35]} Rxf6 {[%emt 0:00:13]} 39. Rxf6 {[%emt 0:00:04]} Kg7 {[%emt 0:00:22]} 40. Raf1 {[%emt 0:00:30]} Bxe2 {[%emt 0:01:56]} 41. Rf7+ {[%emt 0:30:05]} Kg8 {[%emt 0:30:25]} 42. R1f6 {[%emt 0:00:45]} Bg4 {[%emt 0:01:18]} 43. Bh7+ {[%emt 0:01:27]} Kh8 {[%emt 0:00:06]} 44. Rg6 1-0

[Event "83rd ESP-ch Women-ch 2018"]
[Site "Linares"]
[Date "2018.08.26"]
[Round "7"]
[White "Nunez, Daniela Alejandra"]
[Black "Ayats Llobera, Gerard"]
[Result "1/2-1/2"]
[ECO "B13"]
[WhiteElo "2021"]
[BlackElo "2345"]
[Annotator "NA"]
[PlyCount "93"]
[EventDate "2018.08.09"]
[EventType "tourn"]
[EventCountry "ESP"]
[SourceTitle "playchess.com"]
[Source "ChessBase"]
[SourceQuality "1"]
[TimeControl "40/5400+30:1800+30"]

1. e4 {[%emt 0:01:47]} c6 {[%emt 0:00:00]} 2. d4 {[%emt 0:00:43]} d5 {[%emt 0:00:00]} 3. exd5 {[%emt 0:00:03]} cxd5 {[%emt 0:00:00]} 4. Bd3 {[%emt 0:00:03]} Nc6 {[%emt 0:00:00]} 5. c3 {[%emt 0:00:11]} Nf6 {[%emt 0:02:27]} 6. h3 {[%emt 0:00:03]} g6 {[%emt 0:02:37]} 7. Nf3 {[%emt 0:00:14]} Bg7 {[%emt 0:00:04]} 8. O-O {[%emt 0:01:44]} O-O {[%emt 0:00:44]} 9. Re1 {[%emt 0:00:51]} Qc7 {[%emt 0:01:26]} 10. Bg5 {[%emt 0:07:05] B13: Caro-Kann: Exchange Variation and Panov-Botvinnik Attack} (10. Na3 Bf5 11. Bf1 a6 12. Nc2 Bxc2 13. Qxc2 b5 14. a4 Qb7 15. Qb3 Na5 16. Qb4 Nc6 17. Qc5 bxa4 {1-0 (42) Artemiev,V (2682)-Rozum,I (2606) Sochi 2017}) 10... Bf5 {[%emt 0:01:00]} 11. Bxf5 {[%emt 0:11:16]} gxf5 {[%emt 0:00:13]} 12. Qc1 {[%emt 0:01:53]} Kh8 {[%emt 0:04:26]} 13. Bf4 {[%emt 0:03:50]} Qd7 {[%emt 0:02:17]} 14. Nbd2 {[%emt 0:07:39]} Rg8 $146 {[%emt 0:01:46]} ({Predecessor:} 14... Ne4 15. Ng5 e6 16. Qd1 f6 17. Ngxe4 fxe4 {0-1 (29) Korchagina,V (2098)-Cheremnova,T (2245) Tyumen 2012}) 15. Ne5 {[%emt 0:01:54]} Nxe5 {[%emt 0:00:50]} 16. dxe5 {[%emt 0:00:37]} Ne4 {[%emt 0:03:03]} 17. Nb3 {[%emt 0:00:06]} a5 {[%emt 0:09:47]} 18. f3 {[%emt 0:06:52]} a4 {[%emt 0:00:01]} 19. Nd4 {[%emt 0:00:21]} Nc5 {[%emt 0:00:07]} 20. Qe3 {[%emt 0:00:03]} Ra6 {[%emt 0:01:53]} 21. b4 {[%emt 0:06:45]} axb3 {[%emt 0:01:58]} 22. axb3 {[%emt 0:00:06]} Rga8 {[%emt 0:12:37]} 23. Rxa6 {[%emt 0:13:03]} Rxa6 {[%emt 0:00:01]} 24. b4 {[%emt 0:04:08]} Na4 {[%emt 0:00:41]} 25. b5 {[%emt 0:00:07]} Rg6 {[%emt 0:07:49]} 26. e6 {[%emt 0:00:45]} Qe8 {[%emt 0:04:23]} 27. exf7 {[%emt 0:01:13]} Qxf7 {[%emt 0:00:01]} 28. Qxe7 {[%emt 0:00:15]} Bxd4+ {[%emt 0:20:44]} 29. cxd4 {[%emt 0:00:05]} Qxe7 {[%emt 0:00:02]} 30. Rxe7 {[%emt 0:00:08]} Rb6 {[%emt 0:01:26]} 31. Be5+ {[%emt 0:02:30]} Kg8 {[%emt 0:00:01]} 32. Rg7+ {[%emt 0:00:07]} Kf8 {[%emt 0:00:04]} 33. Rxh7 {[%emt 0:00:07]} Rxb5 {[%emt 0:00:57]} 34. h4 {[%emt 0:00:03]} Nb2 {[%emt 0:03:00]} 35. Rh5 {[%emt 0:01:56]} Nd3 {[%emt 0:00:58]} 36. Rxf5+ {[%emt 0:00:03]} Kg8 {[%emt 0:00:06]} 37. h5 {[%emt 0:04:19]} Rb1+ {[%emt 0:00:58]} 38. Kh2 {[%emt 0:00:05]} b5 {[%emt 0:00:31]} 39. h6 {[%emt 0:01:34]} Kh7 {[%emt 0:00:07]} 40. Bg7 {[%emt 0:01:03]} Rb2 {[%emt 0:01:40]} 41. Kh3 {[%emt 0:40:35]} b4 {[%emt 0:31:02]} 42. g4 {[%emt 0:01:50]} b3 {[%emt 0:01:18]} 43. Kh4 {[%emt 0:00:52]} Rh2+ {[%emt 0:00:59]} 44. Kg5 {[%emt 0:00:15]} b2 {[%emt 0:00:37]} 45. Rf8 {[%emt 0:04:24]} Rxh6 $1 {[%emt 0:00:17]} 46. Bxh6 $11 {[%emt 0:00:29]} b1=Q {[%emt 0:00:09]} 47. Rf7+ {[%emt 0:00:04]} 1/2-1/2

[Event "83rd ESP-ch Women-ch 2018"]
[Site "Linares"]
[Date "2018.08.26"]
[Round "7"]
[White "Pablos Tenrero, Raquel"]
[Black "Garcia Romero, Benjamin Abel"]
[Result "1-0"]
[ECO "D00"]
[WhiteElo "2015"]
[BlackElo "2230"]
[Annotator "NA"]
[PlyCount "117"]
[EventDate "2018.08.09"]
[EventType "tourn"]
[EventCountry "ESP"]
[SourceTitle "playchess.com"]
[Source "ChessBase"]
[SourceQuality "1"]
[TimeControl "40/5400+30:1800+30"]

1. d4 {[%emt 0:00:00]} d5 {[%emt 0:00:00]} 2. Nc3 {[%emt 0:00:00]} Nf6 {[%emt 0:00:51]} 3. Bf4 {[%emt 0:00:00]} e6 {[%emt 0:00:12]} 4. e3 {[%emt 0:00:05]} Bb4 {[%emt 0:00:30] D00: 1 d4 d5: Unusual lines} 5. Bd3 {[%emt 0:00:13]} (5. Nge2 Nh5 6. a3 Be7 7. Be5 Nd7 8. g4 Nhf6 9. Bf4 O-O 10. Ng3 c5 11. g5 Ne8 12. h4 {1-0 (47) Rapport,R (2698)-Grischuk,A (2750) chess.com INT 2017}) 5... c5 {[%emt 0:00:15]} 6. dxc5 {[%emt 0:00:20]} Nbd7 {[%emt 0:00:26]} 7. Nf3 {[%emt 0:00:28]} O-O {[%emt 0:00:47]} 8. Bd6 $146 {[%emt 0:03:14]} ({Predecessor:} 8. O-O Bxc3 9. bxc3 Nxc5 10. Be5 b6 11. a4 Nfe4 12. c4 {0-1 (66) Markovich,M (2184)-Junge,W (2360) ICCF email 2015}) 8... Re8 {[%emt 0:00:34]} 9. O-O {[%emt 0:06:45]} Nxc5 {[%emt 0:01:09]} 10. Be5 {[%emt 0:01:34]} a6 {[%emt 0:07:44]} 11. a3 {[%emt 0:05:15]} Nxd3 {[%emt 0:00:22]} 12. Qxd3 {[%emt 0:00:30]} Bd6 {[%emt 0:01:31]} 13. Bxd6 {[%emt 0:07:01]} Qxd6 {[%emt 0:00:05]} 14. e4 {[%emt 0:04:24]} e5 15. Nxd5 Nxd5 {[%emt 0:14:22]} 16. Qxd5 {[%emt 0:00:38]} Qf6 {[%emt 0:00:06]} 17. Rad1 {[%emt 0:05:47]} Bg4 {[%emt 0:00:14]} 18. Qd3 {[%emt 0:01:22]} Rac8 {[%emt 0:00:49]} 19. c3 {[%emt 0:01:10]} Qg6 {[%emt 0:21:37]} 20. Qe3 {[%emt 0:05:32]} Qh5 {[%emt 0:07:20]} 21. h3 {[%emt 0:09:03]} Be6 {[%emt 0:00:37]} 22. Qg5 {[%emt 0:01:56]} Qxg5 {[%emt 0:00:04]} 23. Nxg5 {[%emt 0:00:07]} Bc4 {[%emt 0:00:15]} 24. Rfe1 {[%emt 0:00:38]} Red8 {[%emt 0:01:21]} 25. Nf3 {[%emt 0:01:19]} f6 {[%emt 0:00:04]} 26. Nd2 {[%emt 0:04:55]} Bd3 {[%emt 0:00:55]} 27. Nf1 {[%emt 0:00:28]} Kf7 {[%emt 0:01:24]} 28. f3 {[%emt 0:02:41]} Bc2 {[%emt 0:00:20]} 29. Rxd8 {[%emt 0:05:41]} Rxd8 {[%emt 0:00:08]} 30. Kf2 {[%emt 0:00:24]} Bb3 {[%emt 0:00:41]} 31. Re2 {[%emt 0:04:35]} Ke6 {[%emt 0:02:20]} 32. Rd2 {[%emt 0:00:49]} Rc8 {[%emt 0:00:06]} 33. Ne3 {[%emt 0:01:18]} g6 {[%emt 0:00:12]} 34. g4 {[%emt 0:00:31]} a5 {[%emt 0:03:47]} 35. h4 {[%emt 0:01:44]} Ba4 {[%emt 0:08:58]} 36. Kg3 {[%emt 0:03:20]} Be8 {[%emt 0:00:47]} 37. g5 {[%emt 0:08:42]} f5 {[%emt 0:01:25]} 38. exf5+ {[%emt 0:00:49]} gxf5 {[%emt 0:00:05]} 39. f4 {[%emt 0:00:06]} Rc5 {[%emt 0:03:36]} 40. c4 {[%emt 0:02:11]} exf4+ {[%emt 0:02:06]} 41. Kxf4 {[%emt 0:30:09]} Re5 {[%emt 0:30:11]} 42. Rd4 {[%emt 0:01:50]} Bc6 {[%emt 0:03:48]} 43. b4 {[%emt 0:00:34]} b6 {[%emt 0:03:10]} 44. Nd5 {[%emt 0:03:02]} Re1 {[%emt 0:01:27]} 45. Nc7+ {[%emt 0:03:26]} Ke7 {[%emt 0:00:43]} 46. Kxf5 {[%emt 0:00:57]} Bd7+ {[%emt 0:00:54]} 47. Kf4 {[%emt 0:00:18]} Rf1+ {[%emt 0:03:12]} 48. Kg3 {[%emt 0:00:53]} Bc6 {[%emt 0:00:55]} 49. Nd5+ {[%emt 0:00:42]} Ke6 {[%emt 0:00:34]} 50. Rf4 {[%emt 0:03:38]} Ra1 {[%emt 0:01:46]} 51. Rf6+ {[%emt 0:00:06]} Kd7 {[%emt 0:00:06]} 52. Nxb6+ {[%emt 0:00:09]} Kc7 53. bxa5 {[%emt 0:02:37]} Rxa3+ {[%emt 0:00:22]} 54. Kg4 {[%emt 0:00:17]} Rxa5 {[%emt 0:01:44] [#]} 55. Nd5+ $18 {[%emt 0:00:14]} Bxd5 {[%emt 0:00:36]} 56. cxd5 {[%emt 0:00:06]} Rxd5 {[%emt 0:00:06]} 57. Rf7+ {[%emt 0:00:10]} Rd7 {[%emt 0:00:10]} 58. Rxd7+ {[%emt 0:00:15]} Kxd7 {[%emt 0:00:05]} 59. Kh5 {[%emt 0:00:14]} 1-0

[Event "83rd ESP-ch Women-ch 2018"]
[Site "Linares"]
[Date "2018.08.26"]
[Round "7"]
[White "Sosa Suarez, Carla Cristina"]
[Black "Jimenez Bernal, Francisco"]
[Result "1/2-1/2"]
[ECO "B96"]
[WhiteElo "2006"]
[BlackElo "2250"]
[Annotator "NA"]
[PlyCount "67"]
[EventDate "2018.08.09"]
[EventType "tourn"]
[EventCountry "ESP"]
[SourceTitle "playchess.com"]
[Source "ChessBase"]
[SourceQuality "1"]
[TimeControl "40/5400+30:1800+30"]

1. e4 {[%emt 0:00:00]} c5 {[%emt 0:00:00]} 2. Nf3 {[%emt 0:00:00]} d6 {[%emt 0:00:00]} 3. d4 {[%emt 0:00:00]} Nf6 {[%emt 0:00:00]} 4. Nc3 {[%emt 0:00:18]} cxd4 {[%emt 0:00:00]} 5. Nxd4 {[%emt 0:00:06]} a6 {[%emt 0:00:02]} 6. Bg5 {[%emt 0:00:20]} e6 {[%emt 0:00:12]} 7. f4 {[%emt 0:00:32]} Nbd7 {[%emt 0:00:30]} 8. Bc4 {[%emt 0:01:00]} Qb6 {[%emt 0:04:05]} 9. Bb3 {[%emt 0:04:18] B96: Sicilian Najdorf: 6 Bg5 e6 7 f4, lines other than 7...Qb6 and 7...Be7} Nc5 {[%emt 0:02:55]} (9... Be7 10. f5 Nc5 11. Be3 Qc7 12. O-O b5 13. a3 Nxb3 14. cxb3 O-O 15. Qf3 {½-½ (61) Jobava,B (2730)-Wojtaszek,R (2717) Poznan 2012}) 10. Bxf6 {[%emt 0:03:38]} Nxb3 $146 {[%emt 0:01:24]} ({Predecessor:} 10... gxf6 11. Qd2 Bd7 12. O-O-O O-O-O 13. Kb1 h5 14. Rhf1 Nxb3 15. Nxb3 Kb8 16. a4 Qb4 {½-½ (37) Caceres,D (2016)-Santiago,Y (2291) Natal 2009}) 11. axb3 {[%emt 0:07:16]} gxf6 {[%emt 0:00:10]} 12. f5 {[%emt 0:10:39]} h5 {[%emt 0:02:32]} 13. Qd3 {[%emt 0:05:51]} Bh6 {[%emt 0:13:43]} 14. Rf1 {[%emt 0:04:55]} Bd7 {[%emt 0:19:31]} 15. Rf3 {[%emt 0:16:36]} O-O-O {[%emt 0:14:22]} 16. Nd1 {[%emt 0:13:48]} e5 {[%emt 0:15:38]} 17. Ne2 {[%emt 0:01:42]} Bc6 {[%emt 0:05:47]} 18. c4 {[%emt 0:01:31]} Rhg8 {[%emt 0:00:58]} 19. Kf1 {[%emt 0:01:32]} Rg7 {[%emt 0:03:21]} 20. Rg3 {[%emt 0:06:00]} Rxg3 {[%emt 0:00:39]} 21. Nxg3 {[%emt 0:03:25] [#]} h4 $2 {[%emt 0:00:29]} (21... d5 $1 $19 {[%mdl 512]} 22. Qf3 (22. exd5 $2 Rxd5 23. cxd5 Bb5 $19) (22. cxd5 Bb5) 22... dxe4 23. Nxe4 Bxe4 24. Qxe4 Qxb3) 22. Ne2 {[%emt 0:01:06]} Qc5 {[%emt 0:09:38]} 23. Nf2 {[%emt 0:02:40]} Rg8 {[%emt 0:00:44]} 24. h3 {[%emt 0:00:26]} Kc7 {[%emt 0:00:19]} 25. Ng4 {[%emt 0:00:48]} Bg5 {[%emt 0:00:02]} 26. Nc3 {[%emt 0:03:21]} Kd7 {[%emt 0:01:47]} 27. Na4 {[%emt 0:02:26]} Qb4 $11 {[%emt 0:02:28]} 28. Qc3 {[%emt 0:00:54]} Qxc3 {[%emt 0:00:42]} 29. Nxc3 {[%emt 0:00:05]} Ke7 {[%emt 0:00:11]} 30. Ke2 {[%emt 0:00:44]} Rc8 {[%emt 0:00:49]} 31. Ra5 {[%emt 0:01:14]} Bc1 {[%emt 0:00:34]} 32. Ra2 {[%emt 0:00:19]} Rc7 {[%emt 0:00:22]} 33. Kd1 {[%emt 0:00:08]} Bg5 {[%emt 0:00:14]} 34. Ra5 {[%emt 0:00:28]} 1/2-1/2

[Event "83rd ESP-ch Women-ch 2018"]
[Site "Linares"]
[Date "2018.08.26"]
[Round "7"]
[White "Blazquez Gomez, Miguel"]
[Black "Sanchez Jerez, Emilio Miguel"]
[Result "0-1"]
[ECO "B20"]
[WhiteElo "1998"]
[BlackElo "2246"]
[Annotator "NA"]
[PlyCount "90"]
[EventDate "2018.08.09"]
[EventType "tourn"]
[EventCountry "ESP"]
[SourceTitle "playchess.com"]
[Source "ChessBase"]
[SourceQuality "1"]
[TimeControl "40/5400+30:1800+30"]

1. e4 {[%emt 0:00:00]} c5 {[%emt 0:00:00]} 2. a3 {[%emt 0:00:07]} Nf6 {[%emt 0:00:00] B20: Sicilian: Unusual White 2nd moves} (2... Nc6 3. b4 Nf6 4. b5 Nd4 5. c3 Ne6 6. d3 g6 7. g3 Bg7 8. Bg2 O-O 9. Ne2 a6 10. bxa6 Rxa6 {½-½ (51) Nepomniachtchi,I (2751)-Dubov,D (2701) Moscow 2018}) 3. e5 {[%emt 0:02:08]} Nd5 {[%emt 0:00:00]} 4. Nc3 Nxc3 {[%emt 0:00:00]} 5. dxc3 {[%emt 0:02:06]} d5 {[%emt 0:00:06]} 6. exd6 {[%emt 0:09:17]} exd6 $146 {[%emt 0:00:23]} ({Predecessor:} 6... Qxd6 7. Qe2 e6 8. g3 Bd7 9. Bf4 Qb6 10. O-O-O {1-0 (29) Zelesco,K (2210)-Smith,R (2233) Auckland 2015}) 7. Qf3 {[%emt 0:04:28]} Be7 {[%emt 0:05:15]} 8. Be3 {[%emt 0:13:30]} Nc6 {[%emt 0:06:18]} 9. Bb5 {[%emt 0:10:58]} O-O {[%emt 0:02:58]} 10. Bxc6 {[%emt 0:13:36]} bxc6 {[%emt 0:00:03]} 11. Ne2 {[%emt 0:00:45]} a5 {[%emt 0:11:33]} 12. O-O {[%emt 0:00:26]} Rb8 {[%emt 0:00:29]} 13. b3 {[%emt 0:00:39]} Qd7 {[%emt 0:10:53]} 14. Rfe1 {[%emt 0:06:07]} Qf5 {[%emt 0:05:02]} 15. Qxf5 {[%emt 0:07:47]} Bxf5 {[%emt 0:00:48]} 16. Ng3 {[%emt 0:01:18]} Bxc2 {[%emt 0:01:27]} 17. Rac1 {[%emt 0:04:09]} Bd3 {[%emt 0:13:29]} 18. Bf4 {[%emt 0:06:17] [#]} g5 $1 {[%emt 0:09:25]} 19. Bd2 {[%emt 0:03:10]} Rfe8 {[%emt 0:08:48]} 20. Nh5 {[%emt 0:07:09]} h6 {[%emt 0:03:54]} 21. h4 {[%emt 0:00:38]} Bg6 {[%emt 0:03:54]} 22. g4 {[%emt 0:00:01]} Bxh5 {[%emt 0:01:29]} 23. gxh5 {[%emt 0:00:01]} Kg7 {[%emt 0:02:36]} 24. b4 {[%emt 0:01:35]} c4 {[%emt 0:03:32]} 25. bxa5 {[%emt 0:01:55]} gxh4 {[%emt 0:03:23]} 26. Re4 {[%emt 0:00:25]} ({Better is} 26. Kh1) 26... d5 {[%emt 0:01:04]} 27. Rg4+ {[%emt 0:00:21]} Kh7 {[%emt 0:00:15]} 28. Re1 {[%emt 0:02:04]} Rg8 {[%emt 0:03:31]} 29. f3 {[%emt 0:01:33]} Bxa3 {[%emt 0:00:26]} 30. Kg2 {[%emt 0:00:30]} Rb2 {[%emt 0:01:10]} 31. Re2 {[%emt 0:00:11]} Ra2 {[%emt 0:01:41]} 32. Rxg8 {[%emt 0:00:19]} Kxg8 {[%emt 0:00:02]} 33. Kh3 {[%emt 0:00:00]} Kh7 {[%emt 0:00:50]} 34. Rg2 {[%emt 0:00:39]} Bc5 {[%emt 0:01:28]} 35. Bf4 {[%emt 0:00:15]} Rxa5 {[%emt 0:00:41]} 36. Be5 {[%emt 0:00:01]} Bf8 {[%emt 0:00:10]} 37. Rb2 {[%emt 0:00:17]} Bg7 {[%emt 0:00:27]} 38. f4 {[%emt 0:02:22]} Bxe5 {[%emt 0:00:24]} 39. fxe5 {[%emt 0:00:01]} Ra3 {[%emt 0:00:14]} 40. Rb7 {[%emt 0:00:56]} Rxc3+ {[%emt 0:00:20]} 41. Kxh4 {[%emt 0:30:26]} Kg8 {[%emt 0:30:18]} 42. Kg4 {[%emt 0:00:39]} Re3 {[%emt 0:01:06]} 43. Kf4 {[%emt 0:01:12]} Re4+ {[%emt 0:00:13]} 44. Kf5 {[%emt 0:00:01]} c3 $19 {[%emt 0:00:24]} 45. e6 {[%emt 0:01:28]} Rxe6 {[%emt 0:00:19]} 0-1

[Event "83rd ESP-ch Women-ch 2018"]
[Site "Linares"]
[Date "2018.08.26"]
[Round "7"]
[White "Antunez Munoz, Ines"]
[Black "Castellanos Gomez, Alejandro"]
[Result "0-1"]
[ECO "C05"]
[WhiteElo "1956"]
[BlackElo "2320"]
[Annotator "NA"]
[PlyCount "80"]
[EventDate "2018.08.09"]
[EventType "tourn"]
[EventCountry "ESP"]
[SourceTitle "playchess.com"]
[Source "ChessBase"]
[SourceQuality "1"]
[TimeControl "40/5400+30:1800+30"]

1. e4 {[%emt 0:00:14]} e6 {[%emt 0:00:00]} 2. d4 {[%emt 0:00:08]} d5 {[%emt 0:00:00]} 3. Nd2 {[%emt 0:00:12]} Nf6 {[%emt 0:00:02]} 4. e5 {[%emt 0:00:16]} Nfd7 {[%emt 0:00:08]} 5. f4 {[%emt 0:00:21]} c5 {[%emt 0:00:12]} 6. Ngf3 {[%emt 0:00:33]} Nc6 {[%emt 0:00:17]} 7. Nb3 {[%emt 0:00:44] C05: French Tarrasch: 3...Nf6 4 e5 Nfd7, 5 f4 and 5 Bd3 sidelines} Be7 {[%emt 0:02:31]} (7... c4 8. Nbd2 Qa5 9. c3 b5 10. Be2 b4 11. Nb1 Nb6 12. O-O Bd7 13. Kh1 Be7 14. Bd2 Rb8 15. cxb4 Nxb4 {1-0 (37) Mamedov,R (2659)-Wang,H (2729) Dubai 2014}) 8. Be2 {[%emt 0:02:00]} cxd4 {[%emt 0:08:12]} 9. Nbxd4 {[%emt 0:02:24]} Nc5 {[%emt 0:01:21]} 10. O-O {[%emt 0:03:45]} Bd7 {[%emt 0:00:28]} 11. c3 {[%emt 0:01:42]} a6 {[%emt 0:00:59]} 12. Be3 {[%emt 0:02:05]} O-O {[%emt 0:03:51]} 13. Qc2 $146 {[%emt 0:06:49]} ({Predecessor:} 13. a4 Rb8 14. a5 Ne4 15. Nb3 Rc8 16. Bd3 {1-0 (29) Oliva Castaneda,K (2510)-Bru Rullo,L (2239) Sabadell 2017}) 13... Qc7 {[%emt 0:02:51]} 14. Rad1 {[%emt 0:02:58]} Rac8 {[%emt 0:03:13]} 15. Nxc6 {[%emt 0:15:55]} Bxc6 {[%emt 0:06:05]} 16. Kh1 {[%emt 0:05:22]} Ba4 {[%emt 0:04:43]} 17. b3 {[%emt 0:03:51]} Be8 {[%emt 0:00:26]} 18. Nd4 {[%emt 0:10:35]} b5 {[%emt 0:07:24]} 19. Bf3 {[%emt 0:06:12]} Bd7 {[%emt 0:07:26]} 20. Rde1 {[%emt 0:06:47]} g6 {[%emt 0:03:23]} 21. Bf2 {[%emt 0:06:08]} Nb7 {[%emt 0:01:43]} 22. Re3 {[%emt 0:02:12]} Qa5 {[%emt 0:02:28]} 23. f5 {[%emt 0:04:33]} Bg5 $1 {[%emt 0:04:51]} 24. Rd3 {[%emt 0:01:18]} Qc7 {[%emt 0:00:43]} 25. Be3 {[%emt 0:01:53]} Bxe3 {[%emt 0:01:43]} 26. Rxe3 {[%emt 0:00:05]} gxf5 {[%emt 0:02:02]} 27. Bxd5 {[%emt 0:12:23]} Kh8 {[%emt 0:00:11]} 28. Bf3 {[%emt 0:01:33]} Rg8 {[%emt 0:00:06]} 29. Qf2 {[%emt 0:00:34]} Nc5 {[%emt 0:02:06]} 30. Qh4 {[%emt 0:00:35]} Qd8 {[%emt 0:01:37]} 31. Qh5 {[%emt 0:00:30]} Be8 {[%emt 0:01:17]} 32. Bd1 {[%emt 0:00:48]} Ne4 {[%emt 0:00:43]} 33. Bc2 {[%emt 0:00:28]} Rxc3 {[%emt 0:01:48]} 34. Rxc3 {[%emt 0:00:29]} Nxc3 {[%emt 0:00:05]} 35. Nf3 {[%emt 0:00:32]} Rg7 {[%emt 0:02:47]} 36. Nh4 {[%emt 0:00:32]} Bc6 {[%emt 0:00:28]} 37. Rf2 {[%emt 0:00:33]} Qd4 {[%emt 0:00:27]} 38. Rf1 {[%emt 0:00:27]} Qd2 {[%emt 0:01:10]} 39. Bb1 {[%emt 0:00:33]} Bxg2+ {[%emt 0:00:22]} 40. Kg1 {[%emt 0:00:06]} Bf3+ {[%emt 0:00:45]} 0-1

[Event "83rd ESP-ch Women-ch 2018"]
[Site "Linares"]
[Date "2018.08.26"]
[Round "7"]
[White "Serrano Garcia, Luis"]
[Black "Esquivias Quintero, Luis Manuel"]
[Result "0-1"]
[ECO "B24"]
[WhiteElo "1915"]
[BlackElo "2260"]
[Annotator "NA"]
[PlyCount "58"]
[EventDate "2018.08.09"]
[EventType "tourn"]
[EventCountry "ESP"]
[SourceTitle "playchess.com"]
[Source "ChessBase"]
[SourceQuality "1"]
[TimeControl "40/5400+30:1800+30"]

1. e4 {[%emt 0:00:00]} c5 {[%emt 0:00:00]} 2. Nc3 {[%emt 0:00:00]} Nc6 {[%emt 0:00:00]} 3. Bb5 {[%emt 0:00:00]} Nd4 {[%emt 0:00:00]} 4. Bc4 {[%emt 0:00:15]} a6 {[%emt 0:00:00] B23: Closed Sicilian: Lines without g3} (4... e6 5. Nge2 Ne7 6. Nxd4 cxd4 7. Ne2 Nc6 8. O-O a6 9. d3 d5 10. exd5 exd5 11. Bb3 Bd6 12. Nf4 Bxf4 13. Bxf4 O-O 14. Qf3 Be6 15. Rfe1 {1-0 (58) Cornette,M (2611)-Lenic,L (2662) chess.com INT 2018}) 5. a4 {[%emt 0:00:53]} g6 {[%emt 0:00:00]} 6. Nf3 {[%emt 0:00:42]} Bg7 {[%emt 0:00:32]} 7. O-O {[%emt 0:00:15]} e6 {[%emt 0:01:02]} 8. d3 {[%emt 0:00:33]} Ne7 {[%emt 0:00:50]} 9. Nxd4 {[%emt 0:02:10]} cxd4 {[%emt 0:00:12]} 10. Ne2 {[%emt 0:00:36]} d5 {[%emt 0:02:44]} 11. exd5 {[%emt 0:00:32]} Nxd5 {[%emt 0:00:33]} 12. Nf4 {[%emt 0:03:08]} Ne7 {[%emt 0:09:40]} 13. Bd2 $146 {[%emt 0:11:13]} ({Predecessor:} 13. Qf3) 13... O-O {[%emt 0:02:10]} 14. Qf3 {[%emt 0:02:13]} Rb8 {[%emt 0:10:17]} 15. h4 {[%emt 0:07:12]} Bd7 {[%emt 0:10:49]} 16. h5 {[%emt 0:20:00]} Bc6 {[%emt 0:02:33]} 17. Qh3 {[%emt 0:02:27]} Qd6 {[%emt 0:11:42]} 18. Rfe1 {[%emt 0:17:15]} e5 {[%emt 0:01:28]} 19. hxg6 {[%emt 0:03:57]} hxg6 {[%emt 0:00:53]} 20. Ne2 {[%emt 0:01:00]} Bd7 {[%emt 0:07:36]} 21. Qh2 {[%emt 0:01:10]} b5 {[%emt 0:06:43]} 22. axb5 {[%emt 0:03:05]} Bxb5 {[%emt 0:00:21]} 23. Bb3 {[%emt 0:00:41]} (23. Ng3 $1 $14 {behält die Oberhand.} Bxc4 24. Ne4) 23... Bxd3 $1 {[%emt 0:02:14]} 24. Bxf7+ {[%emt 0:00:45]} Rxf7 {[%emt 0:02:53]} 25. cxd3 {[%emt 0:00:19]} Rxb2 {[%emt 0:00:09]} 26. Bc1 {[%emt 0:01:46]} Rc2 {[%emt 0:02:19]} 27. Ba3 {[%emt 0:01:45]} Qf6 $17 {[%emt 0:00:17]} 28. Qg3 {[%emt 0:00:50]} Nf5 {[%emt 0:03:33]} 29. Qf3 {[%emt 0:00:25]} Bh6 {[%emt 0:01:13]} 0-1